[Event "WSTCC-65 2024"]
[Site "Krakow"]
[Date "2024.07.03"]
[Round "2.23"]
[White "Moyses Sobrinho, Elias"]
[Black "McMahon, Frank"]
[Result "1/2-1/2"]
[ECO "D09"]
[WhiteElo "1908"]
[BlackElo "1818"]
[Annotator "NA RC"]
[PlyCount "65"]
[EventDate "2024.07.01"]
[EventType "team-tourn"]
[EventCountry "POL"]
[SourceTitle "playchess.com"]
[Source "ChessBase"]
[SourceQuality "1"]
[TimeControl "40/5400+30:1800+30"]

1. d4 {[%emt 0:00:05]} d5 {[%emt 0:00:14]} 2. c4 {[%emt 0:00:55]} e5 {[%emt 0:00:42]} 3. dxe5 {[%emt 0:01:13]} d4 {[%emt 0:01:05]} 4. Nf3 {[%emt 0:00:30]} Nc6 {[%emt 0:00:10]} 5. g3 {[%emt 0:01:21]} Be6 {[%emt 0:02:37]} 6. Qa4 {[%emt 0:01:15]} Qd7 {[%emt 0:01:17]} 7. Bg2 {[%emt 0:00:41]} O-O-O {[%emt 0:06:51]} 8. O-O {[%emt 0:01:02]} Kb8 {[%emt 0:08:19]} 9. Bg5 {[%emt 0:05:38]} Be7 {[%emt 0:02:13]} 10. Nbd2 {[%emt 0:07:42]} Nxe5 {[%emt 0:10:51]} 11. Qxd7 {[%emt 0:00:23]} Nxf3+ {[%emt 0:00:19]} 12. Nxf3 {[%emt 0:04:59]} Rxd7 {[%emt 0:00:27]} 13. Bxe7 {[%emt 0:04:32]} Nxe7 {[%emt 0:00:20]} 14. Ne5 {[%emt 0:00:42]} Rdd8 {[%emt 0:04:58]} 15. Rac1 {[%emt 0:06:05]} f6 {[%emt 0:06:44]} 16. Nd3 {[%emt 0:00:28]} h5 {[%emt 0:04:52]} 17. Nc5 {[%emt 0:03:03]} Bc8 {[%emt 0:00:20]} 18. Rfd1 {[%emt 0:00:51]} b6 {[%emt 0:03:47]} 19. Nd3 {[%emt 0:00:40]} h4 {[%emt 0:01:05]} 20. c5 {[%emt 0:02:26]} hxg3 {[%emt 0:01:39]} 21. hxg3 {[%emt 0:00:54]} Bb7 {[%emt 0:03:23]} 22. Nf4 {[%emt 0:02:21]} Bxg2 {[%emt 0:09:32]} 23. Kxg2 {[%emt 0:00:52]} Rh7 {[%emt 0:01:19]} 24. cxb6 {[%emt 0:03:41]} axb6 {[%emt 0:00:33]} 25. Ne6 {[%emt 0:00:28]} Rdh8 {[%emt 0:08:43]} 26. Rxd4 {[%emt 0:02:58]} c5 {[%emt 0:02:19]} 27. Rd7 {[%emt 0:08:27]} g5 {[%emt 0:06:45]} 28. Rcd1 {[%emt 0:08:14]} Rh2+ {[%emt 0:01:26]} 29. Kf3 {[%emt 0:00:29]} Nc6 {[%emt 0:01:09]} 30. Rg7 {[%emt 0:05:14]} Ne5+ {[%emt 0:00:37]} 31. Ke3 {[%emt 0:01:21]} Ng4+ {[%emt 0:01:36]} 32. Kf3 {[%emt 0:06:21]} Ne5+ {[%emt 0:00:40]} 33. Ke4 1/2-1/2

[Event "WSTCC-65 2024"]
[Site "Krakow"]
[Date "2024.07.03"]
[Round "2.24"]
[White "Priedite, Ingrida"]
[Black "Andersson, Finn"]
[Result "1-0"]
[ECO "A22"]
[WhiteElo "2044"]
[BlackElo "1824"]
[Annotator "NA RC"]
[PlyCount "97"]
[EventDate "2024.07.01"]
[EventType "team-tourn"]
[EventCountry "POL"]
[SourceTitle "playchess.com"]
[Source "ChessBase"]
[SourceQuality "1"]
[TimeControl "40/5400+30:1800+30"]

1. c4 {[%emt 0:00:07]} e5 {[%emt 0:00:13]} 2. Nc3 {[%emt 0:00:35]} Nf6 {[%emt 0:00:08]} 3. g3 {[%emt 0:00:26]} d6 {[%emt 0:03:27]} 4. Bg2 {[%emt 0:01:23]} Be7 {[%emt 0:00:47]} 5. e3 {[%emt 0:05:14]} O-O {[%emt 0:01:37]} 6. Nge2 {[%emt 0:00:30]} Nc6 {[%emt 0:02:49]} 7. O-O {[%emt 0:02:23]} a5 {[%emt 0:10:35]} 8. d4 {[%emt 0:01:58]} exd4 {[%emt 0:00:43]} 9. exd4 {[%emt 0:01:36]} Bf5 {[%emt 0:02:14]} 10. Bf4 {[%emt 0:13:01]} Qd7 {[%emt 0:06:28]} 11. Qd2 {[%emt 0:04:46]} Bh3 {[%emt 0:06:04]} 12. Rfe1 {[%emt 0:06:34]} Bxg2 {[%emt 0:00:18]} 13. Kxg2 {[%emt 0:00:06]} d5 {[%emt 0:11:02]} 14. b3 {[%emt 0:04:23]} Rfe8 {[%emt 0:03:56]} 15. Red1 {[%emt 0:07:49]} Nd8 {[%emt 0:09:22]} 16. Qd3 {[%emt 0:09:41]} c6 {[%emt 0:01:55]} 17. Na4 {[%emt 0:09:06]} Ra6 {[%emt 0:11:59]} 18. c5 {[%emt 0:03:10]} Ne4 {[%emt 0:02:06]} 19. Nec3 {[%emt 0:02:14]} f5 {[%emt 0:02:18]} 20. Re1 {[%emt 0:03:57]} Rf8 {[%emt 0:04:24]} 21. Nb6 {[%emt 0:02:17]} Rxb6 {[%emt 0:00:09]} 22. cxb6 {[%emt 0:00:30]} Nxc3 {[%emt 0:00:09]} 23. Qxc3 {[%emt 0:00:37]} Bb4 {[%emt 0:00:06]} 24. Qe3 {[%emt 0:00:09]} Bxe1 {[%emt 0:00:10]} 25. Rxe1 {[%emt 0:00:13]} Kf7 {[%emt 0:00:58]} 26. Qd2 {[%emt 0:07:40]} Ne6 {[%emt 0:03:29]} 27. Be5 {[%emt 0:06:03]} Kg8 {[%emt 0:08:22]} 28. Qxa5 {[%emt 0:02:00]} f4 {[%emt 0:00:08]} 29. f3 {[%emt 0:00:15]} fxg3 {[%emt 0:00:17]} 30. hxg3 {[%emt 0:00:34]} Ng5 {[%emt 0:00:08]} 31. Rh1 {[%emt 0:04:14]} Nxf3 {[%emt 0:01:44]} 32. Qc3 {[%emt 0:00:33]} Ng5 {[%emt 0:00:30]} 33. Qe3 {[%emt 0:00:44]} Qf5 {[%emt 0:00:42]} 34. Qe2 {[%emt 0:00:52]} Qe4+ {[%emt 0:06:01]} 35. Qxe4 {[%emt 0:00:09]} Nxe4 {[%emt 0:00:02]} 36. Rc1 {[%emt 0:01:01]} Rc8 {[%emt 0:01:20]} 37. Bc7 {[%emt 0:00:15]} Kf7 {[%emt 0:00:39]} 38. Rxc6 {[%emt 0:00:38]} bxc6 {[%emt 0:00:19]} 39. b7 {[%emt 0:00:08]} Re8 {[%emt 0:00:33]} 40. b8=Q {[%emt 0:00:07]} Rxb8 {[%emt 0:00:01]} 41. Bxb8 {[%emt 0:30:10]} Nc3 {[%emt 0:05:11]} 42. a4 {[%emt 0:00:00]} Ke6 {[%emt 0:01:59]} 43. Kf3 {[%emt 0:00:00]} h5 {[%emt 0:01:09]} 44. Kf4 {[%emt 0:00:00]} g6 {[%emt 0:00:29]} 45. Kg5 {[%emt 0:00:00]} Kf7 {[%emt 0:00:18]} 46. a5 {[%emt 0:00:00]} Ne4+ {[%emt 0:01:05]} 47. Kf4 {[%emt 0:00:00]} Nf6 {[%emt 0:09:47]} 48. a6 {[%emt 0:00:00]} Nd7 {[%emt 0:01:57]} 49. Bc7 1-0

[Event "WSTCC-65 2024"]
[Site "Krakow"]
[Date "2024.07.03"]
[Round "2.24"]
[White "O`Sullivan, Tom"]
[Black "Vieira, Alexandre Letizio"]
[Result "0-1"]
[ECO "D35"]
[WhiteElo "1715"]
[BlackElo "1825"]
[Annotator "NA RC"]
[PlyCount "125"]
[EventDate "2024.07.01"]
[EventType "team-tourn"]
[EventCountry "POL"]
[SourceTitle "playchess.com"]
[Source "ChessBase"]
[SourceQuality "1"]
[TimeControl "40/5400+30:1800+30"]

1. d4 {[%emt 0:00:15]} d5 {[%emt 0:00:05]} 2. c4 {[%emt 0:00:16]} e6 {[%emt 0:00:05]} 3. Nc3 {[%emt 0:01:42]} Nf6 {[%emt 0:00:09]} 4. cxd5 {[%emt 0:01:03]} Nxd5 {[%emt 0:00:27]} 5. e4 {[%emt 0:01:14]} Nxc3 {[%emt 0:00:05]} 6. bxc3 {[%emt 0:00:23]} c5 {[%emt 0:00:34]} 7. Be3 {[%emt 0:02:02]} cxd4 {[%emt 0:00:26]} 8. Bxd4 {[%emt 0:04:42]} Nc6 {[%emt 0:02:53]} 9. Bb5 {[%emt 0:04:25]} Bd7 {[%emt 0:00:09]} 10. Ne2 {[%emt 0:06:10]} Qg5 {[%emt 0:01:49]} 11. Bxc6 {[%emt 0:06:24]} Bxc6 {[%emt 0:00:06]} 12. Ng3 {[%emt 0:00:52]} Rd8 {[%emt 0:04:35]} 13. Qc2 {[%emt 0:02:41]} h5 {[%emt 0:03:55]} 14. O-O {[%emt 0:03:43]} h4 {[%emt 0:00:27]} 15. f4 {[%emt 0:01:56]} Qg4 {[%emt 0:02:46]} 16. Qe2 {[%emt 0:03:46]} Qxe2 {[%emt 0:01:36]} 17. Nxe2 {[%emt 0:00:13]} Bxe4 {[%emt 0:01:50]} 18. Bxa7 {[%emt 0:01:06]} Rd2 {[%emt 0:01:22]} 19. Rf2 {[%emt 0:06:09]} Bd6 {[%emt 0:01:31]} 20. Be3 {[%emt 0:05:42]} Rc2 {[%emt 0:07:24]} 21. Bd4 {[%emt 0:01:43]} f6 {[%emt 0:02:03]} 22. Bb6 {[%emt 0:06:19]} Ke7 {[%emt 0:02:54]} 23. Ba5 {[%emt 0:04:49]} Ra8 {[%emt 0:02:38]} 24. Bb4 {[%emt 0:02:18]} Bxb4 {[%emt 0:02:00]} 25. cxb4 {[%emt 0:00:08]} Raxa2 {[%emt 0:00:07]} 26. Rxa2 {[%emt 0:03:01]} Rxa2 {[%emt 0:00:07]} 27. Nc3 {[%emt 0:01:55]} Ra1+ {[%emt 0:01:22]} 28. Rf1 {[%emt 0:01:36]} Rxf1+ {[%emt 0:00:28]} 29. Kxf1 {[%emt 0:00:02]} Bd5 {[%emt 0:00:12]} 30. Kf2 {[%emt 0:00:47]} Kd6 {[%emt 0:00:08]} 31. g3 {[%emt 0:01:26]} hxg3+ {[%emt 0:00:34]} 32. hxg3 {[%emt 0:00:02]} e5 {[%emt 0:00:39]} 33. Ke3 {[%emt 0:02:50]} g5 {[%emt 0:02:48]} 34. f5 {[%emt 0:05:15]} g4 {[%emt 0:01:31]} 35. Nb5+ {[%emt 0:02:05]} Kd7 {[%emt 0:03:22]} 36. Nc3 {[%emt 0:00:34]} Kc6 {[%emt 0:02:18]} 37. Kd3 {[%emt 0:00:47]} Kd6 {[%emt 0:05:04]} 38. Nb5+ {[%emt 0:00:21]} Kd7 {[%emt 0:03:22]} 39. Nc3 {[%emt 0:00:19]} Bc6 {[%emt 0:00:17]} 40. Ke3 {[%emt 0:00:37]} b5 {[%emt 0:01:06]} 41. Kd3 {[%emt 0:32:29]} Ke7 {[%emt 0:30:28]} 42. Nd1 {[%emt 0:03:54]} Kf7 {[%emt 0:04:42]} 43. Ne3 {[%emt 0:02:51]} Bf3 {[%emt 0:00:04]} 44. Nf1 {[%emt 0:01:45]} Kg7 {[%emt 0:01:02]} 45. Nh2 {[%emt 0:00:56]} Kh6 {[%emt 0:00:08]} 46. Nf1 {[%emt 0:05:13]} Kg5 {[%emt 0:00:19]} 47. Ne3 {[%emt 0:00:03]} Bc6 {[%emt 0:00:10]} 48. Ke2 {[%emt 0:00:00]} Bd7 {[%emt 0:00:00]} 49. Nd5 {[%emt 0:00:00]} Kxf5 {[%emt 0:00:00]} 50. Ke3 {[%emt 0:00:00]} Ke6 {[%emt 0:00:00]} 51. Nc3 {[%emt 0:00:00]} Bc6 {[%emt 0:00:00]} 52. Kd3 {[%emt 0:00:00]} f5 {[%emt 0:00:00]} 53. Ke3 {[%emt 0:00:00]} Kf6 {[%emt 0:00:00]} 54. Ne2 {[%emt 0:00:00]} Bd5 {[%emt 0:00:00]} 55. Nc3 {[%emt 0:00:00]} Bc4 {[%emt 0:00:00]} 56. Nd1 {[%emt 0:00:00]} Kg5 {[%emt 0:00:00]} 57. Nf2 {[%emt 0:02:06]} f4+ {[%emt 0:00:00]} 58. gxf4+ {[%emt 0:01:28]} exf4+ {[%emt 0:00:00]} 59. Ke4 {[%emt 0:01:32]} Bf1 {[%emt 0:00:00]} 60. Kd4 {[%emt 0:02:39]} g3 {[%emt 0:00:00]} 61. Ne4+ {[%emt 0:02:51]} Kh4 {[%emt 0:00:00]} 62. Nd2 {[%emt 0:01:18]} Be2 {[%emt 0:00:00]} 63. Kc3 0-1